[Event "28th Hit Open-A 2024"]
[Site "Nova Gorica"]
[Date "2024.01.27"]
[Round "3.24"]
[White "Herega, Nejc"]
[Black "Centrih, Aleks"]
[Result "1/2-1/2"]
[ECO "A38"]
[WhiteElo "2257"]
[BlackElo "2082"]
[Annotator "RC"]
[PlyCount "47"]
[EventDate "2024.01.22"]
[EventType "swiss"]
[EventCountry "SLO"]
[SourceTitle "playchess.com"]
[Source "ChessBase"]
[SourceQuality "1"]
[TimeControl "5400+30"]

1. d4 {[%emt 0:00:02]} Nf6 {[%emt 0:02:42]} 2. Nf3 {[%emt 0:00:25]} g6 {[%emt 0:00:05]} 3. g3 {[%emt 0:00:13]} Bg7 {[%emt 0:00:05]} 4. Bg2 {[%emt 0:00:10]} O-O {[%emt 0:00:43]} 5. c4 {[%emt 0:00:17]} c5 {[%emt 0:00:08]} 6. Nc3 {[%emt 0:00:48]} cxd4 {[%emt 0:00:05]} 7. Nxd4 {[%emt 0:00:07]} d6 {[%emt 0:00:07]} 8. O-O {[%emt 0:01:30]} Nc6 {[%emt 0:00:07]} 9. Nc2 {[%emt 0:02:27]} Qa5 {[%emt 0:00:36]} 10. Nd5 {[%emt 0:07:07]} Nxd5 {[%emt 0:18:44]} 11. cxd5 {[%emt 0:01:17]} Ne5 {[%emt 0:00:13]} 12. Bd2 {[%emt 0:08:07]} Qb6 {[%emt 0:07:31]} 13. Bc3 {[%emt 0:03:30]} Nd7 {[%emt 0:05:53]} 14. Bxg7 {[%emt 0:14:57]} Kxg7 {[%emt 0:00:02]} 15. b3 {[%emt 0:00:36]} Nf6 {[%emt 0:02:55]} 16. Ne3 {[%emt 0:03:17]} Bd7 {[%emt 0:02:28]} 17. Nc4 {[%emt 0:04:12]} Qa6 {[%emt 0:02:52]} 18. a4 {[%emt 0:05:04]} Rfc8 {[%emt 0:15:54]} 19. Qd4 {[%emt 0:07:00]} b5 {[%emt 0:01:44]} 20. axb5 {[%emt 0:04:59]} Qxb5 {[%emt 0:00:11]} 21. Rxa7 {[%emt 0:06:00]} Qxb3 {[%emt 0:19:05]} 22. Nd2 {[%emt 0:16:05]} Qb5 {[%emt 0:00:05]} 23. Rxa8 {[%emt 0:01:36]} Rxa8 {[%emt 0:00:08]} 24. Bf3 {[%emt 0:02:38]} 1/2-1/2

[Event "28th Hit Open-A 2024"]
[Site "Nova Gorica"]
[Date "2024.01.27"]
[Round "3.25"]
[White "Skrbec, Leon"]
[Black "Debevec, Blaz"]
[Result "1-0"]
[ECO "E63"]
[WhiteElo "2218"]
[BlackElo "2077"]
[Annotator "TA"]
[PlyCount "101"]
[EventDate "2024.01.22"]
[EventType "swiss"]
[EventCountry "SLO"]
[SourceTitle "playchess.com"]
[Source "ChessBase"]
[SourceQuality "1"]
[TimeControl "5400+30"]

{[%evp 14,101,38,22,45,29,39,39,36,33,54,37,45,51,29,17,22,27,18,21,53,34,21,24,34,31,116,119,110,121,125,119,190,181,181,181,185,195,318,324,340,339,314,330,311,322,398,379,402,387,413,400,408,405,490,484,492,354,445,447,523,514,706,693,812,760,759,660,702,693,2073,1032,1808,2178,2083,2161,2079,1616,1930,1862,2049,1931,1750,1704,7899,6628,6267,6157,29986,29987]} 1. d4 {[%emt 0:00:13]} Nf6 {[%emt 0:00:24]} 2. c4 {[%emt 0:00:07]} g6 {[%emt 0:00:08]} 3. Nf3 {[%emt 0:00:17]} Bg7 {[%emt 0:00:06]} 4. g3 {[%emt 0:00:16]} O-O {[%emt 0:00:07]} 5. Bg2 {[%emt 0:00:16]} d6 {[%emt 0:00:06]} 6. O-O {[%emt 0:00:14]} Nc6 {[%emt 0:00:04]} 7. Nc3 {[%emt 0:00:18]} a6 {[%emt 0:00:04]} 8. Bf4 {[%emt 0:01:07]} h6 {[%emt 0:01:48]} 9. h3 {[%emt 0:02:19]} g5 {[%emt 0:00:36]} 10. Be3 {[%emt 0:00:17]} g4 {[%emt 0:00:40] White is slightly better.} 11. hxg4 {[%emt 0:01:58] OK} Nxg4 {[%emt 0:00:06]} 12. Bf4 {[%emt 0:04:18]} e5 {[%emt 0:00:42] OK} 13. dxe5 {[%emt 0:00:04] OK} dxe5 {[%emt 0:00:24]} 14. Qxd8 {[%emt 0:09:38]} Rxd8 {[%emt 0:00:13]} 15. Bd2 {[%emt 0:00:16] OK} Be6 {[%emt 0:00:35] OK} 16. b3 $1 {[%emt 0:02:49] Strong} Nd4 {[%emt 0:10:03] Inaccurate} 17. Rad1 {[%emt 0:06:47]} c6 {[%emt 0:00:58] OK} 18. e3 {[%emt 0:01:36] OK} Nxf3+ {[%emt 0:01:26] OK} 19. Bxf3 {[%emt 0:00:06]} Rd7 {[%emt 0:01:22] White now steadily converts the win. Mistake (0.8)} ({Black should play} 19... Bf8 $14) 20. Na4 $16 {[%emt 0:00:31] OK} Rad8 {[%emt 0:00:59] OK} 21. Ba5 {[%emt 0:00:24] OK} Rxd1 {[%emt 0:00:14] OK} 22. Bxd1 {[%emt 0:00:04]} ({Don't play} 22. Rxd1 $6 Rxd1+ 23. Bxd1 Bf8 $14) 22... Re8 {[%emt 0:01:56] Mistake (0.7)} (22... Rb8 $16) 23. Nc5 $18 {[%emt 0:01:27][%cal Oc5e6] Nxe6! would now be deadly. Best (Easy)} Bc8 {[%emt 0:00:15] [#] OK} 24. Nxb7 $1 {[%emt 0:07:33][%mdl 512] Brilliant} Bf8 {[%emt 0:02:29] Prevents Nd6. OK} 25. Nd8 {[%emt 0:05:11] OK} Bd7 {[%emt 0:07:18] [#] Mistake (1.2)} (25... c5 {keeps fighting.} 26. Be2 e4) 26. Nxc6 $1 {[%emt 0:07:04][%mdl 512] OK} Nxe3 {[%emt 0:01:16]} (26... Nf6 27. Nb4) 27. fxe3 {[%emt 0:00:39]} Bxc6 {[%emt 0:00:07] OK} 28. Bh5 {[%emt 0:00:06] OK} Re7 {[%emt 0:00:36] OK} 29. Rf6 {[%emt 0:00:24] OK} Be4 {[%emt 0:01:10]} 30. Rxa6 {[%emt 0:00:29] OK} Rd7 {[%emt 0:00:22]} 31. Kf2 {[%emt 0:00:37] OK} f5 {[%emt 0:00:51]} 32. Bf3 {[%emt 0:04:07] OK} Bxf3 {[%emt 0:02:55] OK} 33. Kxf3 {[%emt 0:01:17][%mdl 4096] Endgame. KRB-KRB} Rd1 {[%emt 0:00:02]} 34. Bc7 {[%emt 0:00:21] OK} Bg7 {[%emt 0:00:53]} 35. g4 {[%emt 0:01:42]} e4+ {[%emt 0:00:25]} 36. Ke2 {[%emt 0:00:06] OK} Rb1 {[%emt 0:02:20]} 37. gxf5 {[%emt 0:00:14] OK} Kf7 {[%emt 0:00:54] Inaccurate} 38. c5 {[%emt 0:00:21][%cal Bc4c5,Bc5c6,Bc6c7][%mdl 32] EV=19.89. Goes to c7 (dbg)). OK} Bf6 {[%emt 0:00:30]} 39. Bf4 {[%emt 0:00:28]} Rb2+ {[%emt 0:00:29]} 40. Kf1 {[%emt 0:00:08]} Rb1+ {[%emt 0:00:31]} 41. Kg2 {[%emt 0:00:09]} h5 {[%emt 0:00:23]} 42. c6 {[%emt 0:00:29]} Rc1 {[%emt 0:00:33]} 43. Ra7+ {[%emt 0:00:13]} Ke8 {[%emt 0:00:27]} 44. Ra8+ {[%emt 0:00:10]} Ke7 {[%emt 0:00:09]} 45. c7 {[%emt 0:00:03]} Kd7 {[%emt 0:00:09]} 46. Rf8 {[%emt 0:00:37]} Be7 {[%emt 0:00:28]} 47. Rf7 {[%emt 0:00:26] Threatening mate with f6.} Ke8 {[%emt 0:00:15]} 48. Rh7 {[%emt 0:00:14]} h4 {[%emt 0:00:29]} 49. a4 {[%emt 0:00:50][%cal Ba2a4,Ba4a5][%mdl 32] Intending a5 and mate. EV=25.78. Goes to a5 (dbg))} Rc2+ {[%emt 0:00:23]} 50. Kh3 {[%emt 0:00:04] a5 would kill now.} Rc1 {[%emt 0:00:09]} 51. a5 {[%emt 0:00:17] Weighted Error Value: White=0.13 (very precise) /Black=0.34.  Mistake:       	---       	Black=3      Inaccurate:     	---       	Black=2      OK:         	White=17    	Black=11     Best:        	White=1     	---        Strong:       	White=1     	---        Brilliant:      	White=1     	---} 1-0

[Event "28th Hit Open-A 2024"]
[Site "Nova Gorica"]
[Date "2024.01.27"]
[Round "3.26"]
[White "Dorokhina, Elizaveta"]
[Black "Pagano, Sergio"]
[Result "1-0"]
[ECO "D02"]
[WhiteElo "1994"]
[BlackElo "1821"]
[Annotator "NA RC"]
[PlyCount "35"]
[EventDate "2024.01.22"]
[EventType "swiss"]
[EventCountry "SLO"]
[SourceTitle "playchess.com"]
[Source "ChessBase"]
[SourceQuality "1"]
[TimeControl "5400+30"]

1. d4 {[%emt 0:12:30]} d5 {[%emt 0:00:14]} 2. Bf4 {[%emt 0:00:20]} e6 {[%emt 0:01:32]} 3. e3 {[%emt 0:00:28]} c5 {[%emt 0:01:34]} 4. c3 {[%emt 0:02:35]} Nc6 {[%emt 0:01:11]} 5. Nd2 {[%emt 0:00:13]} Nf6 {[%emt 0:02:28]} 6. Ngf3 {[%emt 0:01:16]} Be7 {[%emt 0:01:43]} 7. h3 {[%emt 0:00:56]} O-O {[%emt 0:02:05]} 8. Bd3 {[%emt 0:01:20]} Qb6 {[%emt 0:03:18]} 9. Rb1 {[%emt 0:03:15]} cxd4 {[%emt 0:02:06]} 10. exd4 {[%emt 0:00:23]} Re8 {[%emt 0:03:21]} 11. O-O {[%emt 0:00:47]} Nd7 {[%emt 0:02:01]} 12. Re1 {[%emt 0:03:01]} Nf8 {[%emt 0:01:34]} 13. Ng5 {[%emt 0:05:10]} Nxd4 {[%emt 0:04:53]} 14. cxd4 {[%emt 0:01:16]} Qxd4 {[%emt 0:00:11]} 15. Qf3 {[%emt 0:02:19]} f6 {[%emt 0:01:11]} 16. Nxh7 {[%emt 0:03:57]} e5 {[%emt 0:02:19]} 17. Nxf8 {[%emt 0:02:25]} Kxf8 {[%emt 0:02:36]} 18. Bxe5 {[%emt 0:00:25]} 1-0

[Event "28th Hit Open-A 2024"]
[Site "Nova Gorica"]
[Date "2024.01.27"]
[Round "3.27"]
[White "Barbir, Petar"]
[Black "Labrovic, Jakov"]
[Result "1/2-1/2"]
[ECO "B00"]
[WhiteElo "1738"]
[BlackElo "1925"]
[Annotator "TA"]
[PlyCount "54"]
[EventDate "2024.01.22"]
[EventType "swiss"]
[EventCountry "SLO"]
[SourceTitle "playchess.com"]
[Source "ChessBase"]
[SourceQuality "1"]
[TimeControl "5400+30"]

{[%evp 10,54,22,18,12,-37,-12,-47,-46,-40,-42,-49,-35,-35,34,0,15,7,74,0,175,160,156,145,234,0,0,0,67,16,23,31,31,25,23,0,0,-5,105,85,87,86,88,3,6,7,10]} 1. e4 {[%emt 0:01:39]} b6 {[%emt 0:00:02]} 2. d4 {[%emt 0:00:06]} Bb7 {[%emt 0:00:09]} 3. Nc3 {[%emt 0:00:09]} e6 {[%emt 0:00:11]} 4. Nf3 {[%emt 0:00:13]} Bb4 {[%emt 0:00:05]} 5. Bd3 {[%emt 0:00:14]} Nf6 {[%emt 0:00:18]} 6. e5 {[%emt 0:02:38]} Ne4 {[%emt 0:00:25]} 7. Bd2 {[%emt 0:01:12]} (7. Bxe4 $11 Bxe4 8. O-O) 7... Nxd2 $15 {[%emt 0:00:17]} 8. Qxd2 {[%emt 0:00:44]} Bxf3 $1 {[%emt 0:01:35] Black is slightly better.} 9. gxf3 {[%emt 0:00:05]} Qh4 {[%emt 0:00:12]} 10. Be4 {[%emt 0:00:52]} Nc6 {[%emt 0:01:08]} 11. a3 {[%emt 0:01:02]} Be7 {[%emt 0:03:01]} (11... Bxc3 $15 12. Qxc3 O-O-O) 12. Rg1 {[%emt 0:03:16]} O-O-O {[%emt 0:01:50]} 13. O-O-O {[%emt 0:00:43]} g6 {[%emt 0:03:26]} (13... f5 $11 14. Bd3 (14. Bxc6 dxc6 15. f4 Rhg8 $15) 14... g5) 14. Qe2 {[%emt 0:01:52]} (14. d5 $16 exd5 (14... Nxe5 15. Qe2 $16) 15. Bxd5 (15. Qxd5 f5 $15)) 14... Kb7 {[%emt 0:07:27]} (14... Nb8 $11) 15. d5 $18 {[%emt 0:00:16]} exd5 {[%emt 0:01:23]} 16. Nxd5 {[%emt 0:00:08]} Bc5 {[%emt 0:13:28]} (16... Kb8 $16) 17. Nb4 $2 {[%emt 0:00:41]} (17. f4 a5 18. b4 Bxf2) ({White should play} 17. Nf6 $18) 17... Bxb4 $1 $11 {[%emt 0:03:34]} 18. axb4 {[%emt 0:00:09] [#] b5 is the strong threat.} a6 {[%emt 0:03:02]} ({Black should try} 18... Kb8 $11) 19. b5 {[%emt 0:01:28] White is more active.} (19. Rg4 $14 Qxh2 20. f4) 19... axb5 {[%emt 0:00:14]} 20. Qxb5 {[%emt 0:00:09][%cal Od1d7] Threatens to win with Rxd7!} (20. Kb1 {simplifies} f5 21. exf6 Qxf6 22. Rd5) 20... f5 {[%emt 0:02:26]} 21. exf6 {[%emt 0:02:51]} Qxf6 {[%emt 0:00:04]} 22. Rg5 {[%emt 0:02:29]} Ra8 {[%emt 0:08:30]} 23. Rxd7 {[%emt 0:05:12] [#] And now Rc5 would win.} Ra5 {[%emt 0:02:05]} (23... Rhe8 $1 $11 {keeps the balance.} 24. Rg4 (24. Rxh7 $2 {loses.} Rxe4 25. c3 Qxf3 $19) 24... Ra1+ 25. Kd2 Re6) 24. Qxc6+ $16 {[%emt 0:00:34]} Qxc6 {[%emt 0:00:16]} 25. Rxa5 {[%emt 0:00:24]} (25. Bxc6+ Kxc6 26. Rxa5 Kxd7 $17) 25... bxa5 {[%emt 0:01:14]} 26. Rd3 {[%emt 0:00:18]} (26. Bxc6+ Kxc6 27. Rf7 Re8 $11) (26. Rf7 $16) 26... Kb6 $11 {[%emt 0:00:25]} 27. Bxc6 {[%emt 0:00:07]} Kxc6 {[%emt 0:00:09] Weighted Error Value: White=0.35/Black=0.36.  Loses game:     	---       	Black=1      Missed win:     	White=1     	---        Mistake:       	White=4     	Black=5      Inaccurate:     	White=2     	---        OK:         	White=4     	Black=6      Best:        	White=1     	Black=1      Strong:       	---       	Black=2} 1/2-1/2

[Event "28th Hit Open-A 2024"]
[Site "Nova Gorica"]
[Date "2024.01.27"]
[Round "3.28"]
[White "Belyaletdinov, Leonard"]
[Black "Orsatti, Marcello"]
[Result "1/2-1/2"]
[ECO "D05"]
[WhiteElo "1581"]
[BlackElo "1918"]
[Annotator "TA"]
[PlyCount "96"]
[EventDate "2024.01.22"]
[EventType "swiss"]
[EventCountry "SLO"]
[SourceTitle "playchess.com"]
[Source "ChessBase"]
[SourceQuality "1"]
[TimeControl "5400+30"]

{[%evp 9,96,1,18,16,25,14,14,6,22,0,22,-3,0,-33,13,15,63,0,2,-35,-30,-38,-29,-39,-21,-38,-37,-50,-51,-45,-38,-58,-29,-49,-31,-44,-29,-41,-28,-22,-15,-51,-34,-38,-38,-45,-36,-45,-19,-20,0,0,0,-43,-39,-35,-40,-89,-4,-13,-7,-56,-24,-22,-21,-84,-79,-122,-119,-108,-20,-29,0,0,0,0,0,-44,-60,-215,-17,-28,-29,-27,0,0,0,0,0]} 1. d4 {[%emt 0:00:04]} d5 {[%emt 0:00:06]} 2. Nf3 {[%emt 0:00:11]} Nf6 {[%emt 0:00:07]} 3. e3 {[%emt 0:01:38]} e6 {[%emt 0:00:14]} 4. Bd3 {[%emt 0:00:13]} Be7 {[%emt 0:00:50]} 5. b3 {[%emt 0:00:27]} Nbd7 {[%emt 0:00:20]} 6. Bb2 {[%emt 0:00:11]} a6 {[%emt 0:00:26]} 7. Nbd2 {[%emt 0:01:03]} b6 {[%emt 0:03:23]} 8. Ne5 {[%emt 0:00:26]} Bb7 {[%emt 0:00:15] Prevents Nc6} 9. O-O {[%emt 0:00:44]} c5 {[%emt 0:00:59]} 10. c4 {[%emt 0:01:14]} dxc4 {[%emt 0:08:13]} 11. Nxd7 {[%emt 0:02:55]} Qxd7 {[%emt 0:01:01]} (11... cxd3 $15 {deserves consideration.} 12. Ne5 a5) 12. Nxc4 $11 {[%emt 0:00:29]} b5 {[%emt 0:18:33]} (12... cxd4 $11 {should be considered.} 13. Bxd4 (13. Nxb6 $2 Qc6 $19) 13... Qc6) 13. Ne5 {[%emt 0:03:14]} (13. Na5 $14) 13... Qd5 {[%emt 0:01:57][%csl Gb7][%cal Rd5g2] [#]} 14. f3 {[%emt 0:00:39] Active counter play!} cxd4 {[%emt 0:00:19]} 15. exd4 {[%emt 0:00:21]} O-O {[%emt 0:04:53]} 16. Qe2 {[%emt 0:04:15]} Qd8 {[%emt 0:02:51]} 17. Rfd1 {[%emt 0:02:11]} Qb6 {[%emt 0:01:05]} 18. Rac1 {[%emt 0:00:44]} Rac8 {[%emt 0:01:26]} 19. Kh1 {[%emt 0:00:51]} Rfd8 {[%emt 0:00:49]} 20. Bb1 {[%emt 0:07:30]} Bd5 {[%emt 0:00:30]} 21. Qd3 {[%emt 0:00:30] [#] Hoping for Rxc8.} g6 {[%emt 0:00:30]} 22. Qe2 {[%emt 0:00:30]} Qb7 {[%emt 0:00:30]} 23. Nd3 {[%emt 0:10:10]} Bf8 {[%emt 0:14:55]} (23... Bc6 $5) 24. Nc5 {[%emt 0:00:30]} Qa8 {[%emt 0:00:30]} 25. Nd3 {[%emt 0:00:23]} Bg7 {[%emt 0:00:30]} 26. Ba3 {[%emt 0:00:37]} Rxc1 {[%emt 0:00:30]} 27. Bxc1 {[%emt 0:00:30]} Rc8 {[%emt 0:00:30]} 28. Nc5 {[%emt 0:00:30]} Qc6 {[%emt 0:00:30]} 29. Be3 {[%emt 0:00:30]} Nd7 {[%emt 0:00:30]} 30. Rc1 {[%emt 0:00:30]} Qd6 {[%emt 0:00:30]} 31. b4 {[%emt 0:00:30]} e5 {[%emt 0:00:30]} 32. dxe5 {[%emt 0:00:30]} Qxe5 {[%emt 0:00:30][%cal Oc8e8]} 33. Qf2 {[%emt 0:00:30]} (33. Qd2 $15 {is superior.} Nxc5 34. Bxc5) 33... Nb6 {[%emt 0:00:30]} (33... Nxc5 $17 34. Qd2 Re8 35. Bxc5 Bf6) 34. Rd1 {[%emt 0:00:30][%cal Oc5d3] Strongly threatening Nd3!} Re8 {[%emt 0:00:30]} 35. Bd2 {[%emt 0:00:30]} (35. Bd4 $11 {was preferrable.} Qf4 36. Bxg7 Kxg7 37. Kg1) 35... Nc4 {[%emt 0:00:30]} 36. Re1 {[%emt 0:00:30]} Qb8 {[%emt 0:00:30]} 37. h3 {[%emt 0:00:30]} (37. Nxa6 $11 {keeps the balance.} Rxe1+ 38. Qxe1) 37... Rxe1+ $17 {[%emt 0:00:30]} 38. Qxe1 {[%emt 0:00:30]} Nxd2 {[%emt 0:00:30]} 39. Qxd2 {[%emt 0:00:30]} Qe5 {[%emt 0:00:30]} (39... Qg3 $17 {[%cal Og7e5] ...Be5! would now be deadly.} 40. Ne4 Bxe4 (40... Qe5 41. Qd1 $17) 41. Bxe4 Be5) 40. Be4 $1 $11 {[%emt 0:00:30]} Qa1+ {[%emt 0:00:30]} 41. Kh2 {[%emt 0:00:30]} Be5+ {[%emt 0:00:30] A strong pair of Bishops.} (41... Bxa2 $2 {too greedy.} 42. Qd8+ Bf8 43. Nd7 $18) 42. f4 {[%emt 0:00:30]} Bxe4 {[%emt 0:31:50]} (42... Bxa2 $2 {perishes.} 43. fxe5 Qxe5+ 44. g3 $18) 43. Nxe4 {[%emt 0:20:47][%mdl 4096] Endgame. KQB-KQN} Bd4 {[%emt 0:00:21]} 44. Qd3 $2 {[%emt 0:02:18]} (44. h4 $15) 44... Bg1+ $2 {[%emt 0:01:50]} ({Black should play} 44... Qg1+ $19 45. Kg3 f5) 45. Kg3 {[%emt 0:00:05]} Qe1+ {[%emt 0:00:22]} 46. Kf3 {[%emt 0:00:08]} Qxb4 {[%emt 0:02:33]} 47. Qd8+ {[%emt 0:01:10]} Qf8 {[%emt 0:01:20]} 48. Nf6+ {[%emt 0:00:08]} Kg7 {[%emt 0:00:05] Weighted Error Value: White=0.25 (precise) /Black=0.22 (precise) .  Missed win:     	---       	Black=1      Mistake:       	White=5     	Black=4      Inaccurate:     	White=6     	Black=5      OK:         	White=6     	Black=11     Best:        	White=5     	Black=2      Strong:       	White=1     	---} 1/2-1/2

[Event "28th Hit Open-A 2024"]
[Site "Nova Gorica"]
[Date "2024.01.27"]
[Round "3.29"]
[White "Capaliku, Aleks"]
[Black "Novak, Rok"]
[Result "1-0"]
[ECO "A03"]
[WhiteElo "1913"]
[BlackElo "1777"]
[Annotator "NA RC"]
[PlyCount "93"]
[EventDate "2024.01.22"]
[EventType "swiss"]
[EventCountry "SLO"]
[SourceTitle "playchess.com"]
[Source "ChessBase"]
[SourceQuality "1"]
[TimeControl "5400+30"]

1. f4 {[%emt 0:00:01]} d5 {[%emt 0:00:13]} 2. b3 {[%emt 0:00:05]} Nf6 {[%emt 0:00:49]} 3. Nf3 {[%emt 0:00:08]} e6 {[%emt 0:00:41]} 4. e3 {[%emt 0:00:05]} Be7 {[%emt 0:00:17]} 5. Bb2 {[%emt 0:00:08]} b6 {[%emt 0:00:49]} 6. Bb5+ {[%emt 0:02:19]} c6 {[%emt 0:03:10]} 7. Be2 {[%emt 0:00:02]} Bb7 {[%emt 0:02:25]} 8. O-O {[%emt 0:00:13]} O-O {[%emt 0:00:34]} 9. Ne5 {[%emt 0:00:19]} c5 {[%emt 0:02:37]} 10. d3 {[%emt 0:01:12]} Nfd7 {[%emt 0:01:21]} 11. Nd2 {[%emt 0:00:34]} f6 {[%emt 0:00:48]} 12. Nxd7 {[%emt 0:05:17]} Qxd7 {[%emt 0:00:22]} 13. Bf3 {[%emt 0:03:33]} Nc6 {[%emt 0:02:33]} 14. Qe2 {[%emt 0:03:20]} Rac8 {[%emt 0:02:31]} 15. e4 {[%emt 0:04:59]} Nd4 {[%emt 0:01:50]} 16. Qd1 {[%emt 0:16:54]} Nxf3+ {[%emt 0:02:13]} 17. Qxf3 {[%emt 0:03:47]} Rfd8 {[%emt 0:02:05]} 18. Rae1 {[%emt 0:03:39]} b5 {[%emt 0:02:58]} 19. exd5 {[%emt 0:04:33]} exd5 {[%emt 0:02:14]} 20. Qe2 {[%emt 0:06:38]} Bf8 {[%emt 0:00:56]} 21. Nf3 {[%emt 0:05:58]} Re8 {[%emt 0:03:02]} 22. Qd2 {[%emt 0:00:31]} d4 {[%emt 0:03:20]} 23. Bc1 {[%emt 0:00:31]} Rxe1 {[%emt 0:05:09]} 24. Qxe1 {[%emt 0:03:56]} Re8 {[%emt 0:01:06]} 25. Qf2 {[%emt 0:00:19]} Bd6 {[%emt 0:11:24]} 26. Bd2 {[%emt 0:00:31]} Re7 {[%emt 0:03:51]} 27. Re1 {[%emt 0:01:43]} Qe8 {[%emt 0:00:38]} 28. Rxe7 {[%emt 0:08:37]} Qxe7 {[%emt 0:00:12]} 29. Kf1 {[%emt 0:02:04]} Qe6 {[%emt 0:02:15]} 30. Qe2 {[%emt 0:01:57]} Kf7 {[%emt 0:00:55]} 31. Qxe6+ {[%emt 0:01:26]} Kxe6 {[%emt 0:00:13]} 32. Kf2 {[%emt 0:03:46]} Kf5 {[%emt 0:02:03]} 33. g3 {[%emt 0:02:06]} Kg4 {[%emt 0:01:49]} 34. Ng1 {[%emt 0:00:40]} h5 {[%emt 0:01:12]} 35. h3+ {[%emt 0:00:16]} Kf5 {[%emt 0:00:08]} 36. Nf3 {[%emt 0:00:18]} g5 {[%emt 0:06:31]} 37. fxg5 {[%emt 0:00:39]} Bxf3 38. Kxf3 {[%emt 0:00:03]} fxg5 {[%emt 0:01:16]} 39. g4+ {[%emt 0:00:06]} hxg4+ {[%emt 0:00:22]} 40. hxg4+ {[%emt 0:00:13]} Kf6 {[%emt 0:00:29]} 41. Ke4 {[%emt 0:00:45]} b4 {[%emt 0:01:38]} 42. Kd5 {[%emt 0:00:20]} Bf4 {[%emt 0:03:04]} 43. Be1 {[%emt 0:00:38]} Be3 {[%emt 0:01:03]} 44. Kd6 {[%emt 0:02:03]} a5 {[%emt 0:03:36]} 45. Kd5 {[%emt 0:00:35]} Bc1 {[%emt 0:00:39]} 46. Bg3 {[%emt 0:00:31]} Bd2 {[%emt 0:03:51]} 47. Bd6 {[%emt 0:00:44]} 1-0

[Event "28th Hit Open-A 2024"]
[Site "Nova Gorica"]
[Date "2024.01.27"]
[Round "3.30"]
[White "Veselic, Maks"]
[Black "Ivsek, Cveto"]
[Result "1-0"]
[ECO "B17"]
[WhiteElo "1874"]
[BlackElo "1711"]
[Annotator "NA RC COMBH"]
[PlyCount "89"]
[EventDate "2024.01.22"]
[EventType "swiss"]
[EventCountry "SLO"]
[SourceTitle "playchess.com"]
[Source "ChessBase"]
[SourceQuality "1"]
[TimeControl "5400+30"]

1. e4 {[%emt 0:00:06]} c6 {[%emt 0:00:32]} 2. d4 {[%emt 0:00:06]} d5 {[%emt 0:00:15]} 3. Nc3 {[%emt 0:00:28]} dxe4 {[%emt 0:03:21]} 4. Nxe4 {[%emt 0:00:07]} Nd7 {[%emt 0:06:48]} 5. Nf3 {[%emt 0:01:40]} h6 {[%emt 0:01:22]} 6. Bd3 {[%emt 0:03:41]} Ngf6 {[%emt 0:00:56]} 7. Nxf6+ {[%emt 0:02:04]} Nxf6 {[%emt 0:00:22]} 8. h3 {[%emt 0:02:32]} g5 {[%emt 0:10:05]} 9. h4 {[%emt 0:10:25]} g4 {[%emt 0:00:51]} 10. Ne5 {[%emt 0:00:11]} Be6 {[%emt 0:05:39]} 11. c3 {[%emt 0:02:52]} Qd5 {[%emt 0:06:41]} 12. O-O {[%emt 0:05:33]} Bg7 {[%emt 0:04:29]} 13. Re1 {[%emt 0:03:05]} h5 {[%emt 0:05:00]} 14. Bc4 {[%emt 0:01:01]} Qd6 {[%emt 0:08:20]} 15. Bxe6 {[%emt 0:00:23]} fxe6 {[%emt 0:00:11]} 16. Ng6 {[%emt 0:00:16]} Rh6 {[%emt 0:04:24]} 17. Bxh6 {[%emt 0:00:27]} Bxh6 {[%emt 0:00:10]} 18. Qb3 {[%emt 0:03:09]} Nd5 {[%emt 0:02:49]} 19. c4 {[%emt 0:01:43]} Nf4 {[%emt 0:02:05]} 20. Nxf4 {[%emt 0:00:43]} Bxf4 {[%emt 0:00:17]} 21. c5 {[%emt 0:00:36]} Qd5 {[%emt 0:01:00]} 22. Qxd5 {[%emt 0:02:10]} exd5 {[%emt 0:00:11]} 23. Re6 {[%emt 0:00:19]} Kf7 {[%emt 0:09:44]} 24. Rae1 {[%emt 0:00:29]} Re8 {[%emt 0:00:05]} 25. g3 {[%emt 0:00:09]} Bc1 {[%emt 0:00:53]} 26. R6e2 {[%emt 0:02:27]} Bh6 {[%emt 0:01:32]} 27. Kg2 {[%emt 0:01:57]} Bg7 {[%emt 0:01:05]} 28. Rd1 {[%emt 0:00:54]} Bf6 {[%emt 0:01:24]} 29. b4 {[%emt 0:01:07]} a6 {[%emt 0:00:57]} 30. a4 {[%emt 0:00:55]} e5 {[%emt 0:06:45]} 31. dxe5 {[%emt 0:01:00]} Bxe5 {[%emt 0:00:07]} 32. Rb1 {[%emt 0:04:21]} Kf6 {[%emt 0:00:49]} 33. b5 {[%emt 0:00:33]} axb5 {[%emt 0:09:04]} 34. axb5 {[%emt 0:00:14]} Rc8 {[%emt 0:01:33]} 35. Rbe1 {[%emt 0:02:27]} Bd4 {[%emt 0:00:46]} 36. Re6+ {[%emt 0:00:38]} Kf5 {[%emt 0:00:17]} 37. Rh6 {[%emt 0:01:33]} Bxc5 {[%emt 0:00:38]} 38. Rxh5+ {[%emt 0:00:09]} Kf6 {[%emt 0:00:18]} 39. Ree5 {[%emt 0:01:41]} Bd4 {[%emt 0:00:40]} 40. Rhf5+ {[%emt 0:00:27]} Kg7 {[%emt 0:00:34]} 41. Re7+ {[%emt 0:00:20]} Kg6 {[%emt 0:00:12]} 42. Rg5+ {[%emt 0:00:05]} Kh6 {[%emt 0:00:11]} 43. Rxg4 {[%emt 0:00:20]} c5 {[%emt 0:00:43]} 44. Re6+ {[%emt 0:01:14]} Kh7 {[%emt 0:00:10]} 45. Rd6 {[%emt 0:01:34]} 1-0